Cogmind - Beta 15 @@@ ROGUE MODE // 2025.05.16 @ 03:52:46 Player: H0-R5E Result: Destroyed by 37-Y9Q(h) with Bolt Gun Performance ------------- Evolutions (0) 0 Regions Visited (4) 800 Robots Destroyed (21) 105 Value Destroyed (439) 439 Prototype IDs (12) 240 Alien Tech Used (0) 0 Bonus (814) 814 TOTAL SCORE: 2398 Bonus ------- Follower Combat Kills 14 Registered with UFD 300 Met Optimus in HQ 500 Cogmind --------- Core Integrity 0/250 Matter 300/300 Energy 150/150 System Corruption 0% Temperature Cool (0) Movement Walking (90) Location -9/Scraptown Parts ------- > --- POWER (1) -------- Micro Fission Core > --- PROPULSION (2) --- Overtuned Flexi-carbon Leg > --- UTILITY (2) ------ Medium Storage Unit Improved Core Shielding > --- WEAPON (2) ------- Overtuned Pulse Rifle > --- INVENTORY (10) --- Overtuned Huge Scrapsphere Scrap Suit Experimental Sensor Array Improved Reaction Control System Improved Medium Armor Plating Tech Extrapolator Personal Teleporter v0.10 (0/15) DRS Beacon (Ready) Peak State ------------ > --- POWER ------------ Micro Fission Core > --- PROPULSION ------- Improved Aluminum Leg Overtuned Flexi-carbon Leg > --- UTILITY ---------- Medium Storage Unit Improved Core Shielding > --- WEAPON ----------- Overtuned Pulse Rifle Flak Gun > --- INVENTORY -------- Overtuned Huge Scrapsphere Improved Heat Sink Experimental Sensor Array Improved Reaction Control System Improved Medium Armor Plating Tech Extrapolator Personal Teleporter v0.10 CPS Tube DRS Beacon [Rating: 32] Favorites ----------- Power Ion Engine Engine Ion Engine Power Core Micro Fission Core Propulsion Wheel Leg Overtuned Flexi-carbon Leg Wheel Wheel Utility Improved Heat Sink Device Improved Heat Sink Storage Huge Storage Unit Protection Improved Core Shielding Weapon Medium Laser Energy Gun Medium Laser Ballistic Gun Flak Gun Launcher Grenade Launcher Special Weapon CPS Tube Build | -11 -10 -10 -10 -9 ------- Run | Yrd Mat Min Sub Scr Slots Evolved . | . . . . . Power . | . . . . . Propulsion . | . . . . . Utility . | . . . . . Weapon . | . . . . . Parts Attached 32 | 6 10 1 2 13 Power 4 | 1 1 . . 2 Engine 3 | 1 1 . . 1 Core 1 | . . . . 1 Reactor . | . . . . . Propulsion 11 | 2 2 1 1 5 Treads . | . . . . . Leg 3 | . . . . 3 Wheel 8 | 2 2 1 1 2 Hover . | . . . . . Flight . | . . . . . Utility 5 | 1 2 . . 2 Device 1 | . 1 . . . Storage 3 | 1 1 . . 1 Processor . | . . . . . Hackware . | . . . . . Protection 1 | . . . . 1 Artifact . | . . . . . Weapon 12 | 2 5 . 1 4 Energy Gun 7 | 1 4 . . 2 Energy Cannon . | . . . . . Ballistic Gun 2 | 1 . . . 1 Ballistic Cannon . | . . . . . Launcher 1 | . 1 . . . Special Weapon 2 | . . . 1 1 Impact Weapon . | . . . . . Slashing Weapon . | . . . . . Piercing Weapon . | . . . . . Special Melee Weapon . | . . . . . Unidentified Prototypes . | . . . . . Parts Lost 6 | . 2 1 . 3 Power 1 | . 1 . . . Propulsion 2 | . . 1 . 1 Utility . | . . . . . Weapon 3 | . 1 . . 2 Highest Loss Streak 2 | . 2 1 . 2 To Critical Strikes . | . . . . . Average Backups 16 | 3 11 18 19 18 Power . | . . . . . Propulsion 4 | 1 3 4 5 4 Utility 6 | . 3 7 7 7 Weapon 4 | 1 3 7 7 4 Tool/Special . | . . . . . Unused Backups 29 | . 2 . . 27 Power . | . . . . . Propulsion 4 | . 1 . . 3 Utility 14 | . . . . 14 Weapon 8 | . 1 . . 7 Tool/Special 3 | . . . . 3 Average Slot Usage (%) 97 | . 96 99 100 97 Engine 13 | . 14 14 14 13 Leg 2 | . . . . 4 Wheel 23 | . 28 27 28 21 Device 12 | . 10 14 14 13 Storage 14 | . 14 14 14 14 Energy Gun 10 | . 19 19 17 6 Ballistic Gun 7 | . 7 . . 8 Special Weapon 9 | . . . 10 12 Peak Build Rating 32 | 7 11 11 12 32 Average Rating 15 | 4 9 10 11 18 On Entrance 8 | . 7 11 11 12 Naked Turns . | . . . . . Heaviest Build 91 | 12 91 91 90 91 Greatest Support 36 | 26 32 32 36 36 Greatest Overweight (x) 6 | . 2 3 3 6 Average Overweight (x) 2 | . 1 2 2 2 Largest Inventory Capacity 25 | 8 25 25 25 25 Average Capacity 20 | 7 20 25 25 20 Most Carried 25 | 8 19 19 20 25 Average Carried 17 | 4 11 18 19 18 Final Capacity 25 | 8 25 25 25 10 Final Carried 20 | 8 19 19 20 10 Class Distribution -------------------- 100% | Mutant Dominant Class ---------------- Mutant | -10/Materials Mutant | -10/Mines Mutant | -10/Subcaves Mutant | -9/Scraptown Resources | -11 -10 -10 -10 -9 ----------- Run | Yrd Mat Min Sub Scr Matter Collected 633 | 267 125 31 . 210 Remotely . | . . . . . Salvage Created 818 | 127 510 33 . 148 Parts 52 | 9 31 4 . 8 Haulers Intercepted 1 | . 1 . . . Recyclers Shooed 3 | . 3 . . . Parts Field Recycled . | . . . . . Retrieved Matter . | . . . . . Parts Self-Destructed 1 | . . . 1 . Prevented . | . . . . . Kills | -11 -10 -10 -10 -9 ------- Run | Yrd Mat Min Sub Scr Combat Hostiles Destroyed 13 | . 9 1 . 3 Guns 13 | . 9 1 . 3 Classes Destroyed 9 | 2 4 . . 3 Worker 2 | . 1 1 . . Tunneler 2 | 2 . . . . Hauler 1 | . 1 . . . Recycler 3 | 1 2 . . . Swarmer 4 | . 3 1 . . Grunt 6 | . 6 . . . Federalist 1 | . . . . 1 Ranger 1 | . . . . 1 Scrapper 1 | . . . . 1 Best Kill Streak 6 | 3 6 1 . 1 Combat Bots Only 5 | . 5 1 . 1 Max Kills in Single Turn 1 | 1 1 1 . 1 Gunslinging . | . . . . . Exploded . | . . . . . Melee . | . . . . . Uniques/NPCs Destroyed . | . . . . . Combat | -11 -10 -10 -10 -9 -------- Run | Yrd Mat Min Sub Scr Hostile Shots Fired 132 | . 60 7 . 65 Missed 38 | . 18 2 . 18 Hits 94 | . 42 5 . 47 Projectile 94 | . 42 5 . 47 Critical Strikes 1 | . . . . 1 Damage Taken 1046 | . 416 49 . 581 Core 250 | . 134 . . 116 Absorbed by Shields . | . . . . . Redirected to Shielding 44 | . . . . 44 Core Remaining (%) 100 | 100 . . . . Volleys Fired 79 | 7 52 5 5 10 Largest 2 | 2 2 2 1 2 Hottest 108 | 60 100 100 100 108 Shots Fired 144 | 14 103 10 5 12 Gun 139 | 14 103 10 . 12 Cannon . | . . . . . Launcher . | . . . . . Special 5 | . . . 5 . Kinetic 60 | 7 44 . . 9 Thermal 84 | 7 59 10 5 3 Explosive . | . . . . . Electromagnetic . | . . . . . Robot Hit Streak 6 | 3 6 2 . 4 Robot Miss Streak 4 | 2 4 3 . 4 Penetration Max . | . . . . . Secondary Targets 2 | . 1 . . 1 Max Gunslinging Chain 1 | . 1 . . 1 Shots Hit Robots 80 | 8 58 4 . 10 Core Hits 46 | 5 26 2 . 13 Critical Kills . | . . . . . Critical Parts Destroyed . | . . . . . Critical Strikes 2 | . 1 1 . . Burn 2 | . 1 1 . . Melee Attacks . | . . . . . Impact . | . . . . . Slashing . | . . . . . Piercing . | . . . . . Sneak Attacks . | . . . . . Combat Hostiles . | . . . . . Follow-up Attacks . | . . . . . Damage Inflicted 940 | 75 639 77 . 149 Guns 924 | 75 639 61 . 149 Cannons . | . . . . . Explosions . | . . . . . Melee . | . . . . . Ramming 16 | . . 16 . . Kinetic 367 | 30 208 . . 129 Thermal 557 | 45 431 61 . 20 Explosive . | . . . . . Electromagnetic . | . . . . . Impact . | . . . . . Slashing . | . . . . . Piercing . | . . . . . Highest Corruption . | . . . . . Average Corruption . | . . . . . Corruption Purged . | . . . . . Corruption Blocked . | . . . . . Overload Shots . | . . . . . Overflow Damage . | . . . . . Projectiles . | . . . . . Explosions . | . . . . . Melee . | . . . . . Knockbacks . | . . . . . Impact . | . . . . . Kinetic . | . . . . . Secondary . | . . . . . Self-Inflicted Damage 8 | . . 8 . . Shots . | . . . . . Rammed 1 | . . 1 . . Targets Rammed 1 | . . 1 . . Kicked . | . . . . . Crushed . | . . . . . Highest Temperature 256 | 40 210 . . 256 Average Temperature 66 | 18 64 . . 85 Received Heat Transfer 387 | . 129 . . 258 Effects 1 | . . . . 1 Interference 1 | . . . . 1 Siege Activations . | . . . . . Martial Activations . | . . . . . Shielding Activations . | . . . . . Robots Disrupted . | . . . . . Combat Hostiles . | . . . . . Robots Corrupted . | . . . . . Combat Hostiles . | . . . . . Parts Fried . | . . . . . Impact Corruptions . | . . . . . Robots Melted . | . . . . . Combat Hostiles . | . . . . . Parts Melted 1 | . . 1 . . Heat Transferred 1671 | 100 1262 259 . 50 Parts Sabotaged . | . . . . . Parts Stolen . | . . . . . Parts Stripped . | . . . . . Power Chain Reactions . | . . . . . Alert | -11 -10 -10 -10 -9 ------- Run | Yrd Mat Min Sub Scr Maximum Alert Level . | . . . . . Low Security (%) 100 | 100 100 100 . . Level 1 . | . . . . . Level 2 . | . . . . . Level 3 . | . . . . . Level 4 . | . . . . . Level 5 . | . . . . . High Security . | . . . . . Max Security . | . . . . . Peak Influence 102 | 10 102 98 . . Initial . | . . . . . Average 39 | 1 51 31 . . Influence Increases 379 | 15 237 127 . . Destroy 0b10 Robot/C 240 | . 180 60 . . Destroy 0b10 Robot/NC 40 | 15 20 5 . . Destroy Leader 42 | . 32 10 . . Allied During Kill 8 | . . 8 . . Successful Hack 19 | . 5 14 . . Disable Machine 30 | . . 30 . . Influence Decreases 379 | 15 235 82 47 . Entered New Map 27 | . . 2 25 . Time Decay 302 | 15 215 50 22 . Lost Part 30 | . 20 10 . . Lost Ally 20 | . . 20 . . Squads Dispatched 2 | . 2 . . . Investigation 1 | . 1 . . . Extermination . | . . . . . Reinforcement 1 | . 1 . . . Assault . | . . . . . Garrison . | . . . . . Intercept . | . . . . . Searches Triggered . | . . . . . Construction Impeded . | . . . . . Haulers Reinforced . | . . . . . Active Scanning Responses . | . . . . . Cargo Convoy Interrupts . | . . . . . Stealth | -11 -10 -10 -10 -9 --------- Run | Yrd Mat Min Sub Scr Distress Signals . | . . . . . Communications Jammed . | . . . . . Distress Signals . | . . . . . Times Spotted 31 | . 13 3 1 14 Peak Tracking Total 6 | . 4 3 1 6 Tactical Retreats . | . . . . . Traps | -11 -10 -10 -10 -9 ------- Run | Yrd Mat Min Sub Scr Traps Triggered 2 | . 2 . . . Indirectly . | . . . . . Trap Hack Attempts . | . . . . . Triggered . | . . . . . Disarmed . | . . . . . Reprogrammed . | . . . . . Reused . | . . . . . Traps Extracted . | . . . . . Installed . | . . . . . Triggered . | . . . . . Machines | -11 -10 -10 -10 -9 ---------- Run | Yrd Mat Min Sub Scr Machines Disabled 3 | . . 2 . 1 Max in Single Turn 1 | . . . . 1 Machines Repaired . | . . . . . Machines Dismantled . | . . . . . Machines Sabotaged . | . . . . . Overloaded Fab Kills . | . . . . . Hacking | -11 -10 -10 -10 -9 --------- Run | Yrd Mat Min Sub Scr Machines Accessed 12 | . 3 1 . 8 Terminals 3 | . 2 1 . . Fabricators . | . . . . . Repair Stations . | . . . . . Recycling Units 1 | . 1 . . . Scanalyzers . | . . . . . Garrison Access . | . . . . . Total Hacks 67 | . 7 10 . 50 Successful 59 | . 3 6 . 50 Failed 8 | . 4 4 . . Catastrophic . | . . . . . Database Lockouts . | . . . . . Manual 13 | . 6 7 . . Terminals 15 | . 5 10 . . Fabricators . | . . . . . Repair Stations . | . . . . . Recycling Units 2 | . 2 . . . Scanalyzers . | . . . . . Garrison Access . | . . . . . Terminal Hacks 56 | . . 6 . 50 Record 49 | . . . . 49 Robot Analysis 3 | . . 3 . . Level Access Points 1 | . . 1 . . Alert Level 1 | . . 1 . . Dispatch Records 1 | . . 1 . . Proto ID Catalog 1 | . . . . 1 Fabricator Hacks . | . . . . . Repair Station Hacks . | . . . . . Recycling Unit Hacks . | . . . . . Scanalyzer . | . . . . . Garrison Access Hacks . | . . . . . Unauthorized Hacks 3 | . 3 . . . Terminals 2 | . 2 . . . Botnet 2 | . 2 . . . Fabricators . | . . . . . Repair Stations . | . . . . . Recycling Units 1 | . 1 . . . Reject 1 | . 1 . . . Scanalyzers . | . . . . . Garrison Access . | . . . . . Data Cores Recovered . | . . . . . Used . | . . . . . Hacking Detections 4 | . 3 1 . . Full Trace Events 1 | . 1 . . . Feedback Events . | . . . . . Feedback Blocked . | . . . . . Robot Schematics Acquired . | . . . . . Robots Built . | . . . . . Authchips . | . . . . . Time . | . . . . . Total Robot Build Rating . | . . . . . Part Schematics Acquired . | . . . . . Parts Built . | . . . . . Authchips . | . . . . . Time . | . . . . . Total Part Build Rating . | . . . . . Parts Repaired . | . . . . . Time . | . . . . . Parts Recycled . | . . . . . Recycled Matter . | . . . . . Retrieved Matter . | . . . . . Retrieved Components . | . . . . . Parts Scanalyzed . | . . . . . Part Schematics Acquired . | . . . . . Parts Damaged . | . . . . . Bothacking | -11 -10 -10 -10 -9 ------------ Run | Yrd Mat Min Sub Scr Used RIF Installer . | . . . . . Robots Hacked . | . . . . . Non-combat . | . . . . . Combat . | . . . . . Robot Hacks Applied . | . . . . . Relay Couplers Released . | . . . . . Fabnet Peak Effective % . | . . . . . Robots Rewired . | . . . . . Allies Hacked . | . . . . . Hacks Repelled . | . . . . . Allies | -11 -10 -10 -10 -9 -------- Run | Yrd Mat Min Sub Scr Total Allies 2 | . . 2 . . Largest Group 2 | . . 2 1 1 Highest-Rated Group 58 | . . 58 31 31 Highest-Rated Ally 31 | . . 31 31 31 Total Orders . | . . . . . Ally Attacks 16 | . . 5 . 11 Total Damage 106 | . . 44 . 62 Kills 2 | . . 2 . . Allies Corrupted . | . . . . . Allies Melted 4 | . . . . 4 Intel | -11 -10 -10 -10 -9 ------- Run | Yrd Mat Min Sub Scr Active Infowar (turns) . | . . . . . Robot Analysis Total 3 | . . 3 . . Derelict Logs Recovered 2 | . . 1 . 1 Drone Launches . | . . . . . Drone Recoveries . | . . . . . Exploration | -11 -10 -10 -10 -9 ------------- Run | Yrd Mat Min Sub Scr Turns Passed 3287 | 91 488 249 220 2239 Spaces Moved 2196 | 60 259 171 142 1564 Core 42 | 4 . . . 38 Treads . | . . . . . Legs 232 | . . . . 232 Wheels 1922 | 56 259 171 142 1294 Hover . | . . . . . Flight . | . . . . . Fastest Speed 50 | 50 90 130 129 70 Average Speed 129 | 87 118 131 134 132 Slowest Speed 350 | 90 130 135 135 350 Overloaded Moves . | . . . . . Propulsion Burnouts . | . . . . . Robots Hopped . | . . . . . Potential Cave-ins . | . . . . . Cave-ins Triggered . | . . . . . Exploration Rate (%) 39 | 4 33 55 19 87 Regions Visited 4 Branch Regions 3 Pre-discovered Areas . | . . . . . Known Exits Taken . | . . . . . Unknown Exits Taken 4 | 1 1 1 1 . Scrap Searched 9 | . . . . 9 Spaces Dug . | . . . . . Terrain Destroyed . | . . . . . Melee . | . . . . . Projectile . | . . . . . AOE . | . . . . . Terrain Rammed . | . . . . . Walls Destroyed . | . . . . . Machines Disabled . | . . . . . Actions | -11 -10 -10 -10 -9 --------- Run | Yrd Mat Min Sub Scr Total 2497 | 84 349 183 155 1726 Wait 96 | 2 8 4 6 76 Move 2192 | 59 258 170 141 1564 Hop . | . . . . . Pick Up 52 | 10 14 . 1 27 Fast Attach 10 | 4 1 . . 5 Attach 9 | 2 3 1 . 3 Detach 2 | . 1 . . 1 Swap 18 | . 6 2 2 8 Drop 38 | . 6 . . 32 Fire 79 | 7 52 5 5 10 Melee . | . . . . . Ram 1 | . . 1 . . Kick . | . . . . . Crush . | . . . . . Escape Stasis . | . . . . . Rewire . | . . . . . Trap . | . . . . . Miscellaneous . | . . . . . Route ------- -11/Scrapyard -10/Materials (discovered 2 exits: *Mat / *Min) -10/Mines (discovered 3 exits: *Mat x2 / [*Sub]) -10/Subcaves -9/Scraptown (discovered 1 exit: [*Fac]) History --------- Turn | Location | Event 17 | -11/Scrapyard | Discovered new exit (range 16) 92 | -11/Scrapyard | Entered Materials 310 | -10/Materials | Build established: Mutant 331 | -10/Materials | Core integrity fell below 50% 460 | -10/Materials | Discovered new exit (range 4) 568 | -10/Materials | Discovered new exit (range 8) 580 | -10/Materials | Entered Mines 616 | -10/Mines | Met a Derelict bent on vengeance 616 | -10/Mines | Learned Materials security intel 709 | -10/Mines | Discovered new exit (range 10) 762 | -10/Mines | Identified exit to Materials 804 | -10/Mines | Discovered new exit (range 13) 815 | -10/Mines | Assembled infested the area 829 | -10/Mines | Entered Subcaves 829 | -10/Subcaves | Accompanied by 1 ally 830 | -10/Subcaves | Approached by a straggling Scientist 834 | -10/Subcaves | Led the pair of lost Derelicts to an unsafe place 869 | -10/Subcaves | A swath of the cavern ceiling suddenly collapsed 1008 | -10/Subcaves | Shifting Twisted Machinery released Sub. Monowheel 1016 | -10/Subcaves | Scientist uncovered a shortcut to Scraptown 1049 | -10/Subcaves | Entered Scraptown 1049 | -9/Scraptown | Accompanied by 1 ally 1459 | -9/Scraptown | Visited UFD Registry 1478 | -9/Scraptown | Visited Cave Peace 1525 | -9/Scraptown | Visited CPS Storage 1550 | -9/Scraptown | Visited TADAMA 1609 | -9/Scraptown | Scanned Subdweller tech in exchange for log data 1614 | -9/Scraptown | Learned location of 1 exit from Upper Caves 1692 | -9/Scraptown | Discovered new exit (range 13) 1794 | -9/Scraptown | Visited Bundlers 2175 | -9/Scraptown | Visited IN-MT5's Study 2251 | -9/Scraptown | Visited Science Testing Area 2279 | -9/Scraptown | Visited Spacefarers 2504 | -9/Scraptown | Registered with UFD as "Electrocoil" 2566 | -9/Scraptown | Visited Modified Component R&D 2667 | -9/Scraptown | Visited Supply Room 2683 | -9/Scraptown | Visited Observation Area 2760 | -9/Scraptown | Visited DA-N13 Charitable Foundation 2766 | -9/Scraptown | Found DCF Scrap (31 items) 2817 | -9/Scraptown | Visited LU-1G1's Boring Crew 2865 | -9/Scraptown | Met Optimus 2865 | -9/Scraptown | Accepted into 0bPrime 2944 | -9/Scraptown | Visited Infowarlord's Domain 2969 | -9/Scraptown | Found Exp. Sensor Array 3037 | -9/Scraptown | Visited Derelict Rescue Squad 3044 | -9/Scraptown | Found DRS Beacon 3078 | -9/Scraptown | Visited Science Guys 3079 | -9/Scraptown | Civil war broke out across Scraptown 3096 | -9/Scraptown | Found Prototype Device 3102 | -9/Scraptown | Identified Personal Teleporter v0.10 3142 | -9/Scraptown | Lost 5 allies 3176 | -9/Scraptown | Visited Scrap Suit Storage 3182 | -9/Scraptown | Found Scrap Suit 3271 | -9/Scraptown | Lost 4 allies 3282 | -9/Scraptown | Core integrity fell below 20% 3288 | -9/Scraptown | Destroyed by 37-Y9Q(h) with Bolt Gun Last Messages --------------- 03236_ VD-PUO(g) switches sides. 03237_ Bolt penetrates VD-PUO(g). 03240_ VD-PUO(g) destroyed. 03243_ Bolt penetrates Wall. 03251_ Destroyed Mak. Targeting Computer. 03251_ Bolt penetrates Wall. 03251_ Penetrated by Bolt. 03255_ Ovr. Pulse Rifle recovered from malfunction. 03255_ Ovr. Pulse Rifle suddenly begins malfunctioning. 03256_ Bolt penetrates Wall. 03257_ UG-U7N(h) destroyed. 03261_ Wall collapses. 03264_ Flak Gun destroyed. 03273_ VG-41Q(E) destroyed. 03277_ TE-7WJ(g): "I'm having second thoughts about this." 03281_ Penetrated by Bolt. 03282_ Acquired Ovr. Pulse Rifle. 03283_ Ovr. Pulse Rifle destroyed. 03283_ Acquired 40 matter. 03284_ Penetrated by Bolt. Map ----- +----------------------------------------------------+ | ### ####???????##### ########### ########### ##### | | #???????#"""" """"""""""" """"""""""" """"" | | #???????#" | | #???????#" | | #???????#" | | #???????#" | | #???#####" | | #???#"""" """""""""""""""""""""""""""" | | #???#"""" """""""""""""""""""""""""""" | | #???#"""" ""###### ################"" | | #???#"""" ""# ##????????#"" | | #???#"""" % ""# X"#????????#"" | | ###?#"""" ""# "" "" ##????????#"" | | ""#"#"""" ""# "" "" X"#??????###"" | | """"#"""" ""# " " ######### #"" | | ""#######!!= "" "" | | ###?????#%=!* "" "" | | #########% %! ""# " " ######### #"" | | = [!%!![ # "" "" ""#??????###"" | | [%= ![% [ "# "" "" ##????????#"" | | %! !%& [! ""# X"#????????#"" | | %! %[ ""# ##????????#"" | | * ""###### ################" | | g !""""""""""""""" """"""""""" | | [ [% h =%" " """ "" " "" """"" | | %* ! !*[%!@%= | | ! =%!![!!= | | %= *g%! = | | *!=#""""# =!= !% ! == | | #????#" / =*%/%= | | #????# "" j """""" "" """ %[[! | | #### ####????#####;;%########### #######"##!%*## | | #??# #????????# ! #??# "## %!%= | | #??# #????????## ##??#" ## **&[ | | #??# #????????#"|! "#??#&" "" ""## ! | | #??# #????????#" !"#??# " "" ""##"" " | | #??# #????????#" "#??# ""##" | | | #??# #????????#"! !"#??#"" """"##"" | " | | #??# #????????#"! !"#??#"" " """##" " | | #??# #????????####X ##??#"" " "##"" " | | #??# #???????????#" "#??#"""" """##" " | | ???# #???????????" !"#??#""" X """""##" " && " | | ???# #???????????#######??#"""""""""""##"""""""" | | #### #????????????????????###################### | | """" #?????????????????????????????????????????? | | """" #?????????????????????????????????????????? | | "" #?????????????????????????????????????????? | | #?????????????????????????????????????????? | | "" " #?????????????????????????????????????????? | | """" #?????????????????????????????????????????? | +----------------------------------------------------+ Best States ------------- Heat Dissipation 39 Energy Generation 15 Energy Capacity 250 Matter Stores 300 Matter Capacity 300 Sight Range 16 Terrain Scan Density 10 Core Shielding 30 Evasion (%) 55 Item Schematics ----------------- None Robot Schematics ------------------ None Fabricated ------------ Nothing Repaired ---------- Nothing Alien Tech Used ----------------- None Achievements -------------- None Challenges ------------ None Game ------ Seed CatalystMicrowarpKit Manual? 0 Play Time 00:53:00 Cumulative 1159.2 hours Start 2025.05.16 @ 02:57:17 End 2025.05.16 @ 03:52:46 Sessions 1 Manual Loads 0 Difficulty Rogue Special Mode None Game No. 496 Rogue 496 Adventurer 0 Explorer 0 Win Type - Total 15 Types 13/0/1/1/0/0/0/0/0/0 Lore% 52 Gallery% 72 Achievement% 71 Wizard Run 0 Options --------- Layout 1 ASCII 0 Keyboard 1 Movement Numpad Keybinds 0 Fullscreen 1 Font 24/Proggy Map View 76x35 Zoom Use 0% Tactical HUD 1 Map Filters NONE Filters NONE Steam 1 RUN: 5e2b8070-a887-412b-b506-3650663b2dde